Workbook

Sheet Burden
A1: RURAL ENERGY SAVINGS PROGRAM
A2: Rural Utilities Service, USDA
A3: OMB # 0572-0151
A4: Section of Rule | B4: Title | C4: Form No. (if any) | D4: No. of Respondents | E4: Reports Filed | F4: Total Responses (D) x (E) | G4: Estimated No. of Manhours per response | H4: Estimated Total Manhours (F) x (G) | I4: Wage Class | J4: Total Cost (H) x (I) | L4: 65.9
A5: (A) | B5: (B) | C5: (C) | D5: (D) | E5: (E) | F5: (F) | G5: (G) | H5: (H) | I5: (I) | J5: (J)
B6: Letter of Intent and Application Content
B8: SAM Registration | C8: Online | D8: 9.00 | E8: 1.00 | F8: =SUM(D8*E8) -> 9 | G8: 2.00 | H8: =F8*G8 -> 18 | I8: ='Weighted Wage '!F9 -> 65.90 | J8: =H8*I8 -> $1,186
A10: 1719.5(b)(2) | B10: Step 1: Letter of Intent | C10: written | D10: 9 | E10: 1 | F10: =SUM(D10*E10) -> 9 | G10: 5.00 | H10: =F10*G10 -> 45 | I10: ='Weighted Wage '!F9 -> 65.90 | J10: =H10*I10 -> $2,966
B12: Step 2: RESP Application
A14: 1719.5(3)(i)(A) | B14: Transmittal Letter (Request for RESP loan from Gen. Mgr) | C14: written | D14: 7 | E14: 1 | F14: =SUM(D14*E14) -> 7 | G14: 1.00 | H14: 7 | I14: ='Weighted Wage '!F9 -> 65.90 | J14: =H14*I14 -> $461
A16: 1719.5(3)(i)(B) | B16: Board Resolution | C16: written | D16: 7 | E16: 1 | F16: 7 | G16: 1.00 | H16: 7 | I16: ='Weighted Wage '!F9 -> 65.90 | J16: =H16*I16 -> $461
J17: =H17*I17 -> $0
A18: 1719.5(3)(i)(C) | B18: Articles of Incorporation and Bylaws | C18: written | D18: 7 | E18: 1 | F18: =SUM(D18*E18) -> 7 | G18: 0.50 | H18: 4 | I18: ='Weighted Wage '!F9 -> 65.90 | J18: =H18*I18 -> $231
A20: 1719.5(3)(i)(D) | B20: Environmental Compliance Review | C20: written | D20: 7 | E20: 1 | F20: 7 | G20: 10.00 | H20: 70 | I20: ='Weighted Wage '!F9 -> 65.90 | J20: $4,613
A22: 1719.5(3)(i)(E) | B22: Long Range Financial Forecast and Board Resolution | C22: written | D22: 7 | E22: 1 | F22: =SUM(D22*E22) -> 7 | G22: 40.00 | H22: 280 | I22: ='Weighted Wage '!F9 -> 65.90 | J22: $18,452
A24: 1719.5(3)(i)(F) | B24: Energy Efficiency Program Implementation Work Plan | C24: written | D24: 7 | E24: 1 | F24: 7 | G24: 40.00 | H24: 280 | I24: ='Weighted Wage '!F9 -> 65.90 | J24: $18,452
A26: 1719.5(3)(i)(G) | B26: Statement of Compliance with other Federal Statutes | C26: written | D26: 7 | E26: 1 | F26: 7 | G26: 1.00 | H26: 7 | I26: ='Weighted Wage '!F9 -> 65.90 | J26: $461
A28: 1710.501(a)(8) | B28: Equal Employment Opportunity Employer Report | C28: written | D28: 1 | E28: 1 | F28: 1 | G28: 1.00 | H28: =F28*G28 -> 1 | I28: ='Weighted Wage '!F9 -> 65.90 | J28: =H28*I28 -> $66
J29: $0
B30: Award Closing, Servicing and Reporting
A32: 1719.7 | B32: Review and Acceptance of Conditional Commitment Letter | C32: written | D32: 7 | E32: 1 | F32: =SUM(D32*E32) -> 7 | G32: 8.00 | H32: =F32*G32 -> 56 | I32: ='Weighted Wage '!F9 -> 65.90 | J32: =I32*H32 -> $3,690
A34: 1719.7(c) | B34: Review and Execution of RESP Loan Agreement | C34: written | D34: 7 | E34: 1 | F34: 7 | G34: 1.00 | H34: =F34*G34 -> 7 | I34: ='Weighted Wage '!F9 -> 65.90 | J34: =I34*H34 -> $461
A36: 1719.7(c)(4) | B36: Opinion of Counsel | C36: written | D36: 7 | E36: 1 | F36: 7 | G36: 1.00 | H36: =F36*G36 -> 7 | I36: ='Weighted Wage '!F9 -> 65.90 | J36: =I36*H36 -> $461
A38: 1719.8(d) | B38: Request for Reimbursement or Advance of Funds | C38: written | D38: 6 | E38: 1 | F38: =SUM(D38*E38) -> 6 | G38: 1.00 | H38: =SUM(F38*G38) -> 6 | I38: ='Weighted Wage '!F9 -> 65.90 | J38: =I38*H38 -> $395
A40: 1719.12 | B40: Performance and Financial Reports | C40: written | D40: 6 | E40: 2 | F40: =SUM(D40*E40) -> 12 | G40: 4.00 | H40: =SUM(F40*G40) -> 48 | I40: ='Weighted Wage '!F9 -> 65.90 | J40: =I40*H40 -> $3,163
B42: SAM Registration Maintenance | C42: written | D42: 6 | E42: 1 | F42: =D42*E42 -> 6 | G42: 1.00 | H42: =SUM(F42*G42) -> 6 | I42: ='Weighted Wage '!F9 -> 65.90 | J42: $395
F43: =SUM(F8:F42) -> 113 | H43: =SUM(H8:H42) -> 849 | J43: =SUM(J8:J42) -> $55,917
C45: Total Estimated Annual Responses | F45: =F43 -> 113
D46: Total Estimated Annual Burden Hours | H46: =H43 -> 849
G47: Total Annual Burden Cost | J47: =J43 -> $55,917
C48: Total Estimated Burden Hours per Response | G48: =H46/F45 -> 7.509

Sheet Weighted Wage
A1: Table 2: Estimated Wages for Employee Time
A3: Wage Category | B3: Mean Wage* | C3: 29.4% Benefits** | D3: Total Hourly Wage | E3: Percent Time spent on Burden | F3: Weighted Hourly Salary | H3: * | I3: http://www.bls.gov/oes/current/oes_stru.htm
A4: Senior Manager (11-1021) | B4: 59.07 | C4: =B4*A12 -> 17.37 | D4: =B4+C4 -> 76.44 | E4: 20 | F4: =D4*0.2 -> 15.29
A5: Attorney (23-1011) | B5: 78.74 | C5: =B5*A12 -> 23.15 | D5: =B5+C5 -> 101.89 | E5: 10 | F5: =D5*0.1 -> 10.19 | H5: ** | I5: https://www.bls.gov/news.release/pdf/ecec.pdf
A6: Electrical Engineer (17-2071) | B6: 54.83 | C6: =B6*A12 -> 16.12 | D6: =B6+C6 -> 70.95 | E6: 30 | F6: =D6*0.3 -> 21.29
A7: Accountants/Auditors (13-2011) | B7: 41.70 | C7: =B7*A12 -> 12.26 | D7: =B7+C7 -> 53.96 | E7: 30 | F7: =D7*0.3 -> 16.19
A8: Bookkeeping, Accounting and Auditing Clerks (43-3031) | B8: 22.81 | C8: =B8*A12 -> 6.71 | D8: =B8+C8 -> 29.52 | E8: 10 | F8: =D8*0.1 -> 2.95
E9: =SUM(E4:E8) -> 100 | F9: =SUM(F4:F8) -> 65.90
A12: 0.294 | B12: Benefit

Sheet Federal
A3: Table 4: Wage Rates for Staff Positions:
A4: Staff Position | B4: Wage Rate[1] | C4: Benefits[2] | D4: Hourly Rate
A5: Policy Advisor (GS 15/ Step 5) | B5: $84.55 | C5: =B5*0.3625 -> $30.65 | D5: =B5*1.3625 -> $115.20
A6: Senior Level Engineer (GS 15/Step 5) | B6: $84.55 | C6: =B6*0.3625 -> $30.65 | D6: =B6*1.3625 -> $115.20
A7: Senior Loan Specialist (GS 13/Step 5) | B7: $60.83 | C7: $22.05 | D7: $82.88
A8: Engineer (GS 13/Step 5) | B8: $60.83 | C8: $22.05 | D8: $82.88
A9: General Field Representative (GS 13/Step 5) | B9: $60.83 | C9: $22.05 | D9: $82.88
A10: Deputy Ass’t Admin. (OLOA) (GS 15/Step 5) | B10: $84.55 | C10: $30.65 | D10: $115.20
A11: Financial Branch Chief (GS 15/Step 5) | B11: $84.55 | C11: $30.65 | D11: $115.20
A12: Ass’t Administrator (SES) | B12: $87.93 | C12: $31.87 | D12: $119.80
A13: RUS Administrator (ES) | B13: $90.99 | C13: $32.98 | D13: $123.97
A16: Table 4: Employee Time and Wage Calculations:
A17: Step 1 Letter of Intent Review
A18: Staff Position | B18: Total Hourly Wage | C18: Hours Required | D18: Cost
A19: Policy Advisor | B19: $115.20 | C19: 2 | D19: =B19*C19 -> $230.40
A20: Senior Level Engineer | B20: $115.20 | C20: 3 | D20: =B20*C20 -> $345.60
A21: Senior Loan Specialist | B21: $82.88 | C21: 6 | D21: $497.29
A22: Engineer | B22: $82.88 | C22: 5 | D22: $414.40
A23: Ass’t Admin. (Electric) | B23: $119.80 | C23: 2 | D23: $239.60
A24: Cost Each | D24: =SUM(D19:D23) -> $1,727.29
A26: Step-2 Pre-Application
A27: Policy Advisor | B27: $115.20 | C27: 45 | D27: =B27*C27 -> $5,183.97
A28: Senior Level Engineer | B28: $115.20 | C28: 30 | D28: $3,455.98
A29: Senior Loan Specialist | B29: $82.88 | C29: 30 | D29: $2,486.43
A30: General Field Representative | B30: $82.88 | C30: 64 | D30: $5,304.38
A31: Deputy Ass’t Admin (OLOA) | B31: $115.20 | C31: 5 | D31: $576.00
A32: Ass’t Admin. (Electric) | B32: $119.80 | C32: 5 | D32: $599.00
A33: Cost Each | D33: =SUM(D27:D32) -> $17,605.75
A35: Step 3: Application Review & Loan Approval
A36: Policy Advisor | B36: $115.20 | C36: 16 | D36: =B36*C36 -> $1,843.19
A37: Senior Level Engineer | B37: $115.20 | C37: 40 | D37: $4,607.98
A38: Senior Loan Specialist | B38: $82.88 | C38: 80 | D38: $6,630.47
A39: Financial Branch Chief | B39: $115.20 | C39: 20 | D39: $2,303.99
A40: Consultant | B40: $100.00 | C40: 15 | D40: $1,500.00
A41: Deputy Ass’t Admin. (OLOA) | B41: $115.20 | C41: 10 | D41: $1,151.99
A42: Ass’t Admin. (Electric) | B42: $119.80 | C42: 10 | D42: $1,198.00
A43: Ass’t Admin. (WEP) | B43: $119.80 | C43: 1 | D43: $119.80
A44: Ass’t Admin. (TELECOM) | B44: $119.80 | C44: 1 | D44: $119.80
A45: RUS Administrator | B45: $123.97 | C45: 2 | D45: $247.94
A46: Cost Each | B46: =SUM(B36:B45) -> $1,127.05 | C46: =SUM(C36:C45) -> 195 | D46: =SUM(D36:D45) -> $19,723.16
A48: Step 4: Post Award
A49: Senior Level Engineer | B49: $115.20 | C49: 5 | D49: =B49*C49 -> $576.00
A50: Senior Loan Specialist | B50: $82.88 | C50: 5 | D50: $414.40
A51: Financial Branch Chief | B51: $115.20 | C51: 5 | D51: $576.00
A52: Deputy Ass’t Admin. (OLOA) | B52: $115.20 | C52: 5 | D52: $576.00
A53: Ass’t Admin. (Electric) | B53: $119.80 | C53: 5 | D53: $599.00
A54: Cost Each | D54: =SUM(D49:D53) -> $2,741.40
A57: Table 3: Total Cost to the Federal Government:
A58: Stage | B58: Cost of Each | C58: Number of Entities | D58: Total Cost
A59: Step 1: Letter of Intent Review | B59: =D24 -> $1,727.29 | C59: 9 | D59: =B59*C59 -> $15,545.58
A60: Step 2: Pre-Application | B60: =D33 -> $17,605.75 | C60: 7 | D60: =B60*C60 -> $123,240.27
A61: Step 3: Application Review & Loan Approval | B61: =D46 -> $19,723.16 | C61: 7 | D61: $138,062.09
A62: Step 4: Post Award | B62: =D54 -> $2,741.40 | C62: 6 | D62: $16,448.37
A63: Total Cost to Federal Government | D63: =SUM(D59:D62) -> $293,296.31

Sheet Not in Burden
A3: Section of Rule | B3: Title | C3: Form No. (if any) | D3: No. of Respondents | E3: Reports Filed | F3: Total Responses (D) x (E) | G3: Estimated No. of Manhours per response | H3: Estimated Total Manhours (F) x (G) | I3: Wage Class | J3: Total Cost (H) x (I)
A4: (A) | B4: (B) | C4: (C) | D4: (D) | E4: (E) | F4: (F) | G4: (G) | H4: (H) | I4: (I) | J4: (J)
B5: LOI and Application Content
B6: Assurance agreement (OMB No. 0575-0018) | C6: RD Form 400-4 | D6: 7 | E6: 1 | F6: 7 | G6: 0.25 | H6: =F6*G6 -> 1.75 | I6: 66 | J6: =H6*I6 -> $116
B8: Equal Opportunity Agreement (OMB No. 0575-0018) | C8: RD Form 400-1 | D8: 7 | E8: 1 | F8: 7 | G8: 0.16 | H8: =F8*G8 -> 1.12 | I8: 66 | J8: =H8*I8 -> $74
